[Event "Late-Titled-Tuesday-Blitz-November-28-2023"]
[Site "Chess.com"]
[Date "2023.11.28"]
[Round "4"]
[White "ural58"]
[Black "Freeeeeeeeeeeeeeeeee"]
[Result "0-1"]
[WhiteElo "2479"]
[BlackElo "2117"]
[TimeControl "180+1"]
[EndTime "14:37:20 PST"]
[Termination "Freeeeeeeeeeeeeeeeee won on time"]

1. e4 {[%clk 0:02:59.1]} 1... e5 {[%clk 0:02:53.4]} 2. Nf3 {[%clk 0:02:58.6]}
2... Nc6 {[%clk 0:02:52.5]} 3. Bc4 {[%clk 0:02:58.4]} 3... Nf6 {[%clk
0:02:51.2]} 4. Ng5 {[%clk 0:02:57.1]} 4... d5 {[%clk 0:02:50.8]} 5. exd5 {[%clk
0:02:56.9]} 5... Na5 {[%clk 0:02:51.6]} 6. Bb5+ {[%clk 0:02:56.7]} 6... Bd7
{[%clk 0:02:52.4]} 7. Qe2 {[%clk 0:02:54.3]} 7... Bd6 {[%clk 0:02:51.2]} 8.
Bxd7+ {[%clk 0:02:25.4]} 8... Qxd7 {[%clk 0:02:44.8]} 9. Nc3 {[%clk 0:02:16.8]}
9... O-O {[%clk 0:02:34.8]} 10. O-O {[%clk 0:02:10.3]} 10... Rfe8 {[%clk
0:02:27.3]} 11. d3 {[%clk 0:02:09.5]} 11... Bf8 {[%clk 0:02:25.2]} 12. Qf3
{[%clk 0:02:04.6]} 12... Rad8 {[%clk 0:02:22.9]} 13. Bd2 {[%clk 0:02:02.9]}
13... b6 {[%clk 0:02:11.6]} 14. Rae1 {[%clk 0:01:38.9]} 14... Nxd5 {[%clk
0:02:06]} 15. Nxd5 {[%clk 0:01:37.9]} 15... Qxd5 {[%clk 0:02:05.6]} 16. Bxa5
{[%clk 0:01:25.4]} 16... bxa5 {[%clk 0:02:04.9]} 17. Qxd5 {[%clk 0:01:22.3]}
17... Rxd5 {[%clk 0:02:05.8]} 18. Ne4 {[%clk 0:01:16.3]} 18... Rb8 {[%clk
0:01:58.8]} 19. b3 {[%clk 0:01:14.5]} 19... f5 {[%clk 0:01:58.6]} 20. Nd2 {[%clk
0:01:09.5]} 20... Bb4 {[%clk 0:01:56.8]} 21. Re2 {[%clk 0:01:09.5]} 21... e4
{[%clk 0:01:48.3]} 22. Nc4 {[%clk 0:00:54.6]} 22... exd3 {[%clk 0:01:47.1]} 23.
cxd3 {[%clk 0:00:54.8]} 23... Rxd3 {[%clk 0:01:46.7]} 24. Re5 {[%clk 0:00:53.9]}
24... a4 {[%clk 0:01:34.8]} 25. bxa4 {[%clk 0:00:50.1]} 25... g6 {[%clk
0:01:28.9]} 26. h4 {[%clk 0:00:49]} 26... Bd6 {[%clk 0:01:27.4]} 27. Ra5 {[%clk
0:00:42.9]} 27... Rb7 {[%clk 0:01:17.4]} 28. h5 {[%clk 0:00:41.9]} 28... Rd4
{[%clk 0:01:11.7]} 29. Ne3 {[%clk 0:00:24.3]} 29... Rbb4 {[%clk 0:00:53.6]} 30.
Rxa7 {[%clk 0:00:19.7]} 30... Rxa4 {[%clk 0:00:53.6]} 31. Rb7 {[%clk 0:00:19.7]}
31... Rxa2 {[%clk 0:00:52]} 32. hxg6 {[%clk 0:00:19.9]} 32... hxg6 {[%clk
0:00:52.1]} 33. Rfb1 {[%clk 0:00:18.4]} 33... Rdd2 {[%clk 0:00:48.5]} 34. Nd1
{[%clk 0:00:16.9]} 34... f4 {[%clk 0:00:41.2]} 35. Kh2 {[%clk 0:00:15.1]} 35...
f3+ {[%clk 0:00:32.7]} 36. g3 {[%clk 0:00:12.1]} 36... Rxf2+ {[%clk 0:00:27.9]}
37. Nxf2 {[%clk 0:00:11.3]} 37... Rxf2+ {[%clk 0:00:28.8]} 38. Kh3 {[%clk
0:00:11.7]} 38... Rg2 {[%clk 0:00:27.4]} 39. R7b3 {[%clk 0:00:08.2]} 39... Rxg3+
{[%clk 0:00:26.9]} 40. Kh4 {[%clk 0:00:08.8]} 40... Kg7 {[%clk 0:00:21.2]} 41.
Rf1 {[%clk 0:00:07.9]} 41... Kh6 {[%clk 0:00:16.6]} 0-1

[Event "Late-Titled-Tuesday-Blitz-November-28-2023"]
[Site "Chess.com"]
[Date "2023.11.28"]
[Round "4"]
[White "seasidesunset"]
[Black "Gyulamiryan-koryun"]
[Result "0-1"]
[WhiteElo "2204"]
[BlackElo "1961"]
[TimeControl "180+1"]
[EndTime "14:37:21 PST"]
[Termination "Gyulamiryan-koryun won by checkmate"]

1. e4 {[%clk 0:02:56]} 1... e5 {[%clk 0:02:58.3]} 2. Nf3 {[%clk 0:02:55.8]} 2...
Nc6 {[%clk 0:02:57]} 3. Bb5 {[%clk 0:02:56.4]} 3... a6 {[%clk 0:02:56]} 4. Ba4
{[%clk 0:02:56.4]} 4... Nf6 {[%clk 0:02:55.9]} 5. O-O {[%clk 0:02:56.3]} 5...
Be7 {[%clk 0:02:54]} 6. d3 {[%clk 0:02:53.6]} 6... O-O {[%clk 0:02:49.8]} 7. c3
{[%clk 0:02:50.5]} 7... d6 {[%clk 0:02:48.1]} 8. h3 {[%clk 0:02:42.6]} 8... b5
{[%clk 0:02:47.7]} 9. Bc2 {[%clk 0:02:37.8]} 9... Na5 {[%clk 0:02:44.7]} 10. a4
{[%clk 0:02:33.9]} 10... c5 {[%clk 0:02:41.3]} 11. b4 {[%clk 0:02:28.7]} 11...
cxb4 {[%clk 0:02:34.9]} 12. cxb4 {[%clk 0:02:28.4]} 12... Nc6 {[%clk 0:02:34.9]}
13. axb5 {[%clk 0:02:20.9]} 13... Nxb4 {[%clk 0:02:34.9]} 14. Bb3 {[%clk
0:02:20.2]} 14... Bb7 {[%clk 0:02:28.7]} 15. Qd2 {[%clk 0:02:10.2]} 15... a5
{[%clk 0:02:19.2]} 16. Nc3 {[%clk 0:02:04.1]} 16... Nd7 {[%clk 0:02:10.2]} 17.
Ba3 {[%clk 0:02:01.4]} 17... Nc5 {[%clk 0:02:09.1]} 18. Bc4 {[%clk 0:02:01.1]}
18... Kh8 {[%clk 0:01:43.9]} 19. Rfb1 {[%clk 0:01:55.3]} 19... f5 {[%clk
0:01:37.7]} 20. Bxb4 {[%clk 0:01:40.5]} 20... axb4 {[%clk 0:01:37.3]} 21. Rxb4
{[%clk 0:01:40.2]} 21... Rxa1+ {[%clk 0:01:34.4]} 22. Kh2 {[%clk 0:01:39.5]}
22... fxe4 {[%clk 0:01:30.2]} 23. dxe4 {[%clk 0:01:39.8]} 23... Nxe4 {[%clk
0:01:18.1]} 24. Nxe4 {[%clk 0:01:39]} 24... Bxe4 {[%clk 0:01:17.9]} 25. Ne1
{[%clk 0:01:33.2]} 25... d5 {[%clk 0:01:02]} 26. Be2 {[%clk 0:01:02.8]} 26...
Bxb4 {[%clk 0:00:54]} 27. Qxb4 {[%clk 0:01:03.7]} 27... Ra2 {[%clk 0:00:39.5]}
28. Bf3 {[%clk 0:00:54.2]} 28... Bxf3 {[%clk 0:00:34.7]} 29. Nxf3 {[%clk
0:00:55.1]} 29... Rxf2 {[%clk 0:00:33.6]} 30. b6 {[%clk 0:00:41.5]} 30... R8xf3
{[%clk 0:00:27.8]} 31. b7 {[%clk 0:00:40.8]} 31... Rf8 {[%clk 0:00:23.1]} 32.
Qa3 {[%clk 0:00:40.6]} 32... R2f7 {[%clk 0:00:17.1]} 33. Qa6 {[%clk 0:00:39.3]}
33... Qb8 {[%clk 0:00:16.2]} 34. Qe6 {[%clk 0:00:36.3]} 34... d4 {[%clk
0:00:12.1]} 35. h4 {[%clk 0:00:36]} 35... e4+ {[%clk 0:00:11.5]} 36. Kh3 {[%clk
0:00:35.5]} 36... e3 {[%clk 0:00:10.5]} 37. h5 {[%clk 0:00:35.7]} 37... h6
{[%clk 0:00:09.6]} 38. g4 {[%clk 0:00:31.6]} 38... Qxb7 {[%clk 0:00:07.9]} 39.
g5 {[%clk 0:00:25.8]} 39... Qf3+ {[%clk 0:00:07.5]} 40. Kh2 {[%clk 0:00:24.8]}
40... Qxh5+ {[%clk 0:00:06.5]} 41. Kg3 {[%clk 0:00:25]} 41... Qxg5+ {[%clk
0:00:06.7]} 42. Qg4 {[%clk 0:00:25.4]} 42... Rf3+ {[%clk 0:00:05.9]} 43. Kh2
{[%clk 0:00:26.3]} 43... Qxg4 {[%clk 0:00:04.9]} 44. Kh1 {[%clk 0:00:27.2]}
44... Rh3# {[%clk 0:00:05.1]} 0-1

[Event "Late-Titled-Tuesday-Blitz-November-28-2023"]
[Site "Chess.com"]
[Date "2023.11.28"]
[Round "4"]
[White "C_K_G"]
[Black "MeesvanOsch"]
[Result "1-0"]
[WhiteElo "2193"]
[BlackElo "2398"]
[TimeControl "180+1"]
[EndTime "14:37:22 PST"]
[Termination "C_K_G won by resignation"]

1. e4 {[%clk 0:02:56.7]} 1... e6 {[%clk 0:02:58.9]} 2. Nf3 {[%clk 0:02:56.3]}
2... d5 {[%clk 0:02:58.2]} 3. Nc3 {[%clk 0:02:57]} 3... Nf6 {[%clk 0:02:57.8]}
4. e5 {[%clk 0:02:56.1]} 4... Nfd7 {[%clk 0:02:58.3]} 5. d4 {[%clk 0:02:56.3]}
5... c5 {[%clk 0:02:58.7]} 6. Bg5 {[%clk 0:02:56.3]} 6... Qb6 {[%clk 0:02:57.8]}
7. dxc5 {[%clk 0:02:56.5]} 7... Nxc5 {[%clk 0:02:57.2]} 8. Bb5+ {[%clk
0:02:47.6]} 8... Bd7 {[%clk 0:02:54]} 9. a4 {[%clk 0:02:27.5]} 9... a6 {[%clk
0:02:45.3]} 10. a5 {[%clk 0:02:23.8]} 10... Qc7 {[%clk 0:02:44.5]} 11. Bd3
{[%clk 0:02:05.3]} 11... Nc6 {[%clk 0:02:40.6]} 12. Bf4 {[%clk 0:02:05.3]} 12...
Be7 {[%clk 0:02:37.8]} 13. O-O {[%clk 0:02:04.2]} 13... Nxa5 {[%clk 0:02:35.8]}
14. Bg3 {[%clk 0:01:44.4]} 14... h5 {[%clk 0:02:33.5]} 15. Nxd5 {[%clk 0:01:42]}
15... exd5 {[%clk 0:02:23.4]} 16. e6 {[%clk 0:01:41.6]} 16... Qb6 {[%clk
0:02:23.9]} 17. exd7+ {[%clk 0:01:39.9]} 17... Nxd7 {[%clk 0:02:24.2]} 18. Re1
{[%clk 0:01:31.2]} 18... Kf8 {[%clk 0:02:21.6]} 19. Bf5 {[%clk 0:01:17.6]} 19...
Rd8 {[%clk 0:02:18.6]} 20. Qxd5 {[%clk 0:01:05.7]} 20... Nc5 {[%clk 0:02:13.3]}
21. Qa2 {[%clk 0:00:45.1]} 21... Nc6 {[%clk 0:02:06.5]} 22. c3 {[%clk 0:00:35]}
22... h4 {[%clk 0:02:05.5]} 23. Bf4 {[%clk 0:00:31.6]} 23... Rh5 {[%clk
0:02:02.4]} 24. Bg4 {[%clk 0:00:26.8]} 24... Rhd5 {[%clk 0:02:02.1]} 25. Be3
{[%clk 0:00:25.8]} 25... Qc7 {[%clk 0:01:48]} 26. Nd4 {[%clk 0:00:18.9]} 26...
Nd3 {[%clk 0:01:43.4]} 27. Red1 {[%clk 0:00:17.5]} 27... Nce5 {[%clk 0:01:43.4]}
28. Bh3 {[%clk 0:00:15.5]} 28... Bc5 {[%clk 0:01:39.3]} 29. Nf5 {[%clk 0:00:15]}
29... Nb4 {[%clk 0:01:35.8]} 30. Qb3 {[%clk 0:00:13.5]} 30... Rxd1+ {[%clk
0:01:31.9]} 31. Rxd1 {[%clk 0:00:14.4]} 31... Rxd1+ {[%clk 0:01:32.6]} 32. Qxd1
{[%clk 0:00:14.4]} 32... Nbd3 {[%clk 0:01:33]} 33. Bxc5+ {[%clk 0:00:13.6]}
33... Qxc5 {[%clk 0:01:32.9]} 34. Nd4 {[%clk 0:00:13.6]} 34... g6 {[%clk
0:01:29.2]} 35. Qd2 {[%clk 0:00:10.8]} 35... b5 {[%clk 0:01:26]} 36. Nf3 {[%clk
0:00:09.6]} 36... Nxf3+ {[%clk 0:01:25.2]} 37. gxf3 {[%clk 0:00:10.5]} 37... Qd6
{[%clk 0:01:14.9]} 38. Bf1 {[%clk 0:00:09.8]} 38... Qe5 {[%clk 0:00:47.7]} 39.
Qxd3 {[%clk 0:00:10.1]} 39... Qg5+ {[%clk 0:00:45.4]} 40. Kh1 {[%clk 0:00:08.5]}
40... Qc1 {[%clk 0:00:45.8]} 41. b4 {[%clk 0:00:07.9]} 41... h3 {[%clk
0:00:44.4]} 42. f4 {[%clk 0:00:07.6]} 42... Qxf4 {[%clk 0:00:43.4]} 43. Qxh3
{[%clk 0:00:07.6]} 43... Qxf2 {[%clk 0:00:43.8]} 44. Qg2 {[%clk 0:00:07.3]}
44... Qe1 {[%clk 0:00:42.8]} 45. Qh3 {[%clk 0:00:06.1]} 45... Kg7 {[%clk
0:00:41.5]} 46. Kg1 {[%clk 0:00:05.2]} 46... Qd2 {[%clk 0:00:38]} 47. Qg3 {[%clk
0:00:05.2]} 47... Qe1 {[%clk 0:00:35.8]} 48. Qxe1 {[%clk 0:00:04.6]} 1-0

[Event "Late-Titled-Tuesday-Blitz-November-28-2023"]
[Site "Chess.com"]
[Date "2023.11.28"]
[Round "4"]
[White "Sulthankan"]
[Black "Tomytoteph"]
[Result "1-0"]
[WhiteElo "2386"]
[BlackElo "2599"]
[TimeControl "180+1"]
[EndTime "14:37:25 PST"]
[Termination "Sulthankan won by checkmate"]

1. d4 {[%clk 0:03:00.9]} 1... Nf6 {[%clk 0:02:53.3]} 2. c4 {[%clk 0:03:00.8]}
2... e6 {[%clk 0:02:52.8]} 3. Nf3 {[%clk 0:03:01.2]} 3... Bb4+ {[%clk 0:02:51]}
4. Nbd2 {[%clk 0:03:01.1]} 4... Ne4 {[%clk 0:02:49.9]} 5. Qc2 {[%clk 0:02:57.2]}
5... f5 {[%clk 0:02:48.3]} 6. a3 {[%clk 0:02:53.5]} 6... Nxd2 {[%clk 0:02:46.1]}
7. Bxd2 {[%clk 0:02:47.5]} 7... Bxd2+ {[%clk 0:02:42.5]} 8. Qxd2 {[%clk
0:02:45.9]} 8... Qf6 {[%clk 0:02:40.6]} 9. g3 {[%clk 0:02:41.9]} 9... O-O {[%clk
0:02:36.2]} 10. Bg2 {[%clk 0:02:40.6]} 10... d6 {[%clk 0:02:27.6]} 11. O-O
{[%clk 0:02:35.8]} 11... Nd7 {[%clk 0:02:26.9]} 12. Rae1 {[%clk 0:02:31.3]}
12... e5 {[%clk 0:02:22.4]} 13. dxe5 {[%clk 0:02:26.5]} 13... Nxe5 {[%clk
0:02:20.9]} 14. Nxe5 {[%clk 0:02:19.6]} 14... dxe5 {[%clk 0:02:19.6]} 15. Bd5+
{[%clk 0:02:18.6]} 15... Kh8 {[%clk 0:02:19.4]} 16. Qc3 {[%clk 0:02:04.2]} 16...
f4 {[%clk 0:02:14.2]} 17. Bg2 {[%clk 0:01:47.9]} 17... c6 {[%clk 0:02:12.9]} 18.
Rd1 {[%clk 0:01:45.1]} 18... Bg4 {[%clk 0:01:44.2]} 19. Rd2 {[%clk 0:01:43.4]}
19... Rad8 {[%clk 0:01:40.3]} 20. c5 {[%clk 0:00:57.1]} 20... Qe7 {[%clk
0:01:29.3]} 21. b4 {[%clk 0:00:50.1]} 21... h6 {[%clk 0:01:14.1]} 22. h3 {[%clk
0:00:31.4]} 22... Bc8 {[%clk 0:01:12.1]} 23. Rfd1 {[%clk 0:00:29.7]} 23... Rxd2
{[%clk 0:01:10.8]} 24. Qxd2 {[%clk 0:00:27.2]} 24... fxg3 {[%clk 0:01:08.7]} 25.
fxg3 {[%clk 0:00:26.6]} 25... e4 {[%clk 0:01:09.3]} 26. Qd6 {[%clk 0:00:23.3]}
26... Qf7 {[%clk 0:01:09.5]} 27. Rf1 {[%clk 0:00:22.6]} 27... Bf5 {[%clk
0:01:05.9]} 28. g4 {[%clk 0:00:22.7]} 28... g6 {[%clk 0:01:06.2]} 29. gxf5
{[%clk 0:00:23.1]} 29... gxf5 {[%clk 0:01:06.7]} 30. Qxh6+ {[%clk 0:00:23.2]}
30... Kg8 {[%clk 0:01:05.9]} 31. Bxe4 {[%clk 0:00:17.4]} 31... Qe7 {[%clk
0:01:00.6]} 32. Bf3 {[%clk 0:00:15.5]} 32... Rf6 {[%clk 0:00:58.7]} 33. Qg5+
{[%clk 0:00:11.8]} 33... Kf8 {[%clk 0:00:59.3]} 34. Kh1 {[%clk 0:00:12.1]} 34...
Ke8 {[%clk 0:00:54.8]} 35. Rg1 {[%clk 0:00:10.2]} 35... Kd7 {[%clk 0:00:54.2]}
36. Qg7 {[%clk 0:00:09.6]} 36... Rf7 {[%clk 0:00:54.5]} 37. Rd1+ {[%clk
0:00:09.9]} 37... Kc7 {[%clk 0:00:54.9]} 38. Qg3+ {[%clk 0:00:10.3]} 38... f4
{[%clk 0:00:55.2]} 39. Qg6 {[%clk 0:00:10.8]} 39... b6 {[%clk 0:00:55.6]} 40.
Qd6+ {[%clk 0:00:11]} 40... Qxd6 {[%clk 0:00:55.9]} 41. Rxd6 {[%clk 0:00:10.7]}
41... bxc5 {[%clk 0:00:55.7]} 42. Rxc6+ {[%clk 0:00:11.2]} 42... Kd7 {[%clk
0:00:56.1]} 43. Rxc5 {[%clk 0:00:11.4]} 43... Kd6 {[%clk 0:00:56.3]} 44. h4
{[%clk 0:00:09.6]} 44... Rh7 {[%clk 0:00:56.2]} 45. h5 {[%clk 0:00:10.2]} 45...
Ke6 {[%clk 0:00:57.1]} 46. Ra5 {[%clk 0:00:09.6]} 46... Kd6 {[%clk 0:00:57.4]}
47. Kh2 {[%clk 0:00:10]} 47... Ke6 {[%clk 0:00:57.9]} 48. Kh3 {[%clk 0:00:10.7]}
48... Kf6 {[%clk 0:00:58.5]} 49. Kh4 {[%clk 0:00:11.4]} 49... Rg7 {[%clk
0:00:59]} 50. Ra6+ {[%clk 0:00:11.7]} 50... Kf5 {[%clk 0:00:58.7]} 51. Rg6
{[%clk 0:00:09.4]} 51... Rc7 {[%clk 0:00:57.2]} 52. Rg5+ {[%clk 0:00:09.7]}
52... Kf6 {[%clk 0:00:57.2]} 53. Rc5 {[%clk 0:00:10.4]} 53... Rd7 {[%clk
0:00:57.2]} 54. Kg4 {[%clk 0:00:09.1]} 54... Rd2 {[%clk 0:00:56.1]} 55. Kxf4
{[%clk 0:00:09.1]} 55... Ra2 {[%clk 0:00:56.6]} 56. Rc6+ {[%clk 0:00:09.2]}
56... Kg7 {[%clk 0:00:56.4]} 57. Kg5 {[%clk 0:00:09.7]} 57... Rxa3 {[%clk
0:00:55.4]} 58. Rc7+ {[%clk 0:00:10.3]} 58... Kf8 {[%clk 0:00:55.5]} 59. h6
{[%clk 0:00:10.3]} 59... Ra1 {[%clk 0:00:53.7]} 60. h7 {[%clk 0:00:09]} 60...
Rg1+ {[%clk 0:00:54.6]} 61. Kf6 {[%clk 0:00:08.6]} 61... Rh1 {[%clk 0:00:52.8]}
62. Rc8# {[%clk 0:00:08.6]} 1-0

[Event "Late-Titled-Tuesday-Blitz-November-28-2023"]
[Site "Chess.com"]
[Date "2023.11.28"]
[Round "4"]
[White "DreamsAreFake"]
[Black "Arash_Tahbaz"]
[Result "1-0"]
[WhiteElo "2668"]
[BlackElo "2894"]
[TimeControl "180+1"]
[EndTime "14:37:26 PST"]
[Termination "DreamsAreFake won by checkmate"]

1. Nf3 {[%clk 0:03:00.9]} 1... Nf6 {[%clk 0:02:58.9]} 2. g3 {[%clk 0:03:01.2]}
2... d5 {[%clk 0:02:58.8]} 3. Bg2 {[%clk 0:03:01.5]} 3... c6 {[%clk 0:02:59.5]}
4. O-O {[%clk 0:03:01.8]} 4... Bf5 {[%clk 0:03:00.2]} 5. d3 {[%clk 0:03:01.2]}
5... h6 {[%clk 0:03:00.5]} 6. c4 {[%clk 0:02:55.2]} 6... e6 {[%clk 0:02:55.3]}
7. cxd5 {[%clk 0:02:53]} 7... exd5 {[%clk 0:02:53.2]} 8. Nc3 {[%clk 0:02:53]}
8... Be7 {[%clk 0:02:52.3]} 9. Nd4 {[%clk 0:02:52.7]} 9... Bg6 {[%clk
0:02:44.5]} 10. e4 {[%clk 0:02:53.1]} 10... dxe4 {[%clk 0:02:43.3]} 11. dxe4
{[%clk 0:02:54]} 11... O-O {[%clk 0:02:43.8]} 12. Be3 {[%clk 0:02:48.6]} 12...
Na6 {[%clk 0:02:41.1]} 13. f3 {[%clk 0:02:47.4]} 13... Re8 {[%clk 0:02:39.6]}
14. Qe2 {[%clk 0:02:45.1]} 14... Qc7 {[%clk 0:02:18.5]} 15. Rac1 {[%clk
0:02:42.9]} 15... Rad8 {[%clk 0:02:14.4]} 16. Rfd1 {[%clk 0:02:42.5]} 16... h5
{[%clk 0:02:05.6]} 17. Qf2 {[%clk 0:02:36.6]} 17... Qa5 {[%clk 0:01:53.4]} 18.
Nb3 {[%clk 0:02:33.1]} 18... Qb4 {[%clk 0:01:45.9]} 19. e5 {[%clk 0:02:13.1]}
19... Nh7 {[%clk 0:01:20]} 20. f4 {[%clk 0:02:10.5]} 20... Bf5 {[%clk
0:01:18.2]} 21. Bxa7 {[%clk 0:02:03.1]} 21... h4 {[%clk 0:00:52.7]} 22. Bb6
{[%clk 0:01:58.3]} 22... Rxd1+ {[%clk 0:00:52.1]} 23. Rxd1 {[%clk 0:01:59.2]}
23... Bg4 {[%clk 0:00:50.6]} 24. Rd2 {[%clk 0:01:29.2]} 24... Qc4 {[%clk
0:00:44.6]} 25. Be3 {[%clk 0:01:22.9]} 25... Bb4 {[%clk 0:00:34.6]} 26. Rd4
{[%clk 0:01:20.8]} 26... Qe6 {[%clk 0:00:34.6]} 27. Ne4 {[%clk 0:01:18.3]} 27...
Bf5 {[%clk 0:00:32.9]} 28. Nd6 {[%clk 0:01:17.8]} 28... Bxd6 {[%clk 0:00:32.4]}
29. Rxd6 {[%clk 0:01:18.2]} 29... Qc4 {[%clk 0:00:33]} 30. Nd4 {[%clk
0:01:12.4]} 30... g6 {[%clk 0:00:23.2]} 31. Nxf5 {[%clk 0:01:06.6]} 31... gxf5
{[%clk 0:00:24.1]} 32. b3 {[%clk 0:01:06.7]} 32... Qc3 {[%clk 0:00:22.5]} 33.
gxh4 {[%clk 0:01:05.9]} 33... Nf8 {[%clk 0:00:18]} 34. Qg3+ {[%clk 0:01:02.1]}
34... Kh7 {[%clk 0:00:18.6]} 35. Bh3 {[%clk 0:01:02]} 35... Ne6 {[%clk
0:00:16.6]} 36. Bxf5+ {[%clk 0:00:58.3]} 36... Kh8 {[%clk 0:00:17.3]} 37. Bg4
{[%clk 0:00:40.5]} 37... Rg8 {[%clk 0:00:17.3]} 38. f5 {[%clk 0:00:39.2]} 38...
Nec5 {[%clk 0:00:13.9]} 39. Rh6+ {[%clk 0:00:38.1]} 39... Kg7 {[%clk 0:00:13.9]}
40. e6 {[%clk 0:00:23.4]} 40... Ne4 {[%clk 0:00:06.9]} 41. Qf4 {[%clk
0:00:19.1]} 41... Nac5 {[%clk 0:00:04.9]} 42. f6+ {[%clk 0:00:18.5]} 42... Kf8
{[%clk 0:00:05.2]} 43. e7+ {[%clk 0:00:18.6]} 43... Ke8 {[%clk 0:00:05.8]} 44.
Qb8# {[%clk 0:00:18.6]} 1-0

[Event "Late-Titled-Tuesday-Blitz-November-28-2023"]
[Site "Chess.com"]
[Date "2023.11.28"]
[Round "4"]
[White "GothamChess"]
[Black "noblerone"]
[Result "1-0"]
[WhiteElo "2659"]
[BlackElo "2501"]
[TimeControl "180+1"]
[EndTime "14:37:26 PST"]
[Termination "GothamChess won by checkmate"]

1. e4 {[%clk 0:03:00.9]} 1... c6 {[%clk 0:02:55.3]} 2. d4 {[%clk 0:02:59.9]}
2... d5 {[%clk 0:02:53.5]} 3. f3 {[%clk 0:03:00.6]} 3... dxe4 {[%clk 0:02:50.9]}
4. fxe4 {[%clk 0:03:00.2]} 4... e5 {[%clk 0:02:51.5]} 5. Nf3 {[%clk 0:03:00.5]}
5... Be6 {[%clk 0:02:51.4]} 6. c3 {[%clk 0:02:59.9]} 6... Nd7 {[%clk 0:02:44.5]}
7. Bd3 {[%clk 0:02:59.6]} 7... Bd6 {[%clk 0:02:43]} 8. O-O {[%clk 0:02:59.7]}
8... h6 {[%clk 0:02:34]} 9. Nbd2 {[%clk 0:02:55.7]} 9... Ngf6 {[%clk 0:02:33.7]}
10. Bc4 {[%clk 0:02:40.3]} 10... Qe7 {[%clk 0:02:24.6]} 11. Qe2 {[%clk 0:02:30]}
11... O-O-O {[%clk 0:02:01.1]} 12. Bxe6 {[%clk 0:02:14.9]} 12... Qxe6 {[%clk
0:01:59.7]} 13. Nc4 {[%clk 0:01:38.1]} 13... Bc7 {[%clk 0:01:56.1]} 14. Re1
{[%clk 0:01:11.8]} 14... Rhe8 {[%clk 0:01:53.9]} 15. Qf1 {[%clk 0:01:01.4]}
15... Kb8 {[%clk 0:01:16.1]} 16. b3 {[%clk 0:00:57]} 16... g5 {[%clk 0:00:54.7]}
17. Bb2 {[%clk 0:00:46.2]} 17... Nh5 {[%clk 0:00:52.5]} 18. Ne3 {[%clk
0:00:44.2]} 18... Nf4 {[%clk 0:00:48.7]} 19. Rad1 {[%clk 0:00:40.7]} 19... Bb6
{[%clk 0:00:45.3]} 20. g3 {[%clk 0:00:35.9]} 20... Nh3+ {[%clk 0:00:39.9]} 21.
Kg2 {[%clk 0:00:36.3]} 21... g4 {[%clk 0:00:40.3]} 22. Nd2 {[%clk 0:00:30.6]}
22... h5 {[%clk 0:00:37.5]} 23. Qf5 {[%clk 0:00:29.2]} 23... exd4 {[%clk
0:00:34.8]} 24. cxd4 {[%clk 0:00:28.3]} 24... Qh6 {[%clk 0:00:21]} 25. Ndc4
{[%clk 0:00:24.9]} 25... Bc7 {[%clk 0:00:19.7]} 26. e5 {[%clk 0:00:23.3]} 26...
Nb6 {[%clk 0:00:18.8]} 27. Bc1 {[%clk 0:00:20.9]} 27... Qg7 {[%clk 0:00:14.9]}
28. a4 {[%clk 0:00:19.3]} 28... Nd5 {[%clk 0:00:13.8]} 29. Nxd5 {[%clk
0:00:16.9]} 29... cxd5 {[%clk 0:00:13.3]} 30. Ne3 {[%clk 0:00:14.5]} 30... Ba5
{[%clk 0:00:13.9]} 31. Bd2 {[%clk 0:00:12.9]} 31... Ng5 {[%clk 0:00:11.4]} 32.
Bxa5 {[%clk 0:00:11.6]} 32... b6 {[%clk 0:00:10.6]} 33. Bb4 {[%clk 0:00:10]}
33... Nf3 {[%clk 0:00:10.9]} 34. Re2 {[%clk 0:00:05.4]} 34... Qh6 {[%clk
0:00:09]} 35. Qf4 {[%clk 0:00:02.6]} 35... Qh7 {[%clk 0:00:08.4]} 36. e6+ {[%clk
0:00:02.7]} 36... Ka8 {[%clk 0:00:08.7]} 37. exf7 {[%clk 0:00:03.2]} 37... Rh8
{[%clk 0:00:08.6]} 38. Be7 {[%clk 0:00:02.8]} 38... Rdf8 {[%clk 0:00:07.2]} 39.
Bxf8 {[%clk 0:00:03.1]} 39... Rxf8 {[%clk 0:00:08.1]} 40. Nxd5 {[%clk
0:00:03.3]} 40... h4 {[%clk 0:00:07.9]} 41. Re8+ {[%clk 0:00:03.6]} 41... Kb7
{[%clk 0:00:07.5]} 42. Qc7+ {[%clk 0:00:03.8]} 42... Ka6 {[%clk 0:00:07.6]} 43.
Qc4+ {[%clk 0:00:04.1]} 43... Kb7 {[%clk 0:00:07.5]} 44. Qc8# {[%clk 0:00:03.9]}
1-0